Workbook

Sheet (2)
A1: Point of view: | B1: Manager of auto dealership
A2: Considering: | B2: New Bonus Plan
A3: Goal: | B3: Increase Sales Volume | F3: > points ====>>> one-tail to Right
A4: Mew Sales Volume = | B4: 14 | C4: autos sold per 1 month
A5: Conduct Research Study to: | B5: see whether bonus plan can increase sales volume | F5: > points ====>>> one-tail to Right
A7: a | B7: H0 : μ | C7: <= | D7: =$B$4 -> 14 | E7: =$C$4 -> autos sold per 1 month
B8: Ha : μ | C8: > | D8: =$B$4 -> 14 | E8: =$C$4 -> autos sold per 1 month | F8: > points ====>>> one-tail to Right
A10: b | B10: Based on the sample evidence, we fail to reject H0. There is no statistical evidence that the new bonus plan will increase sales volume.
A11: c | B11: Based on the sample evidence, we reject H0 and accept Ha. There is statistical evidence that the new bonus plan will increase sales volume. The research hypothesis that μ > 14 is supported. Based on our Sample Evidence, we can conclude that the new bonus plan increases the mean sales volume.

Sheet (3)
A1: NOTE: <> means "Not Equal To"
A2: Point of view: | B2: Manufacturer filling boxes
A3: Considering: | B3: under filling and over filling | G3: Either side of Mew, so this is a Two-Tail Test
A4: Goal: | B4: Adjust filling equipment if necessary
A5: Mew Weight = | B5: 32 | C5: oz.
A7: a | B7: H0 : μ | C7: = | D7: =$B$5 -> 32 | E7: =$C$5 -> oz. | G7: Note: To type an equal sign in a cell, type a space as the first
B8: Ha : μ | C8: <> | D8: =$B$5 -> 32 | E8: =$C$5 -> oz. | G8: character and then type = sign, or use a lead apostrophe like: '
A10: b | B10: Based on the sample evidence, we fail to reject H0. The statistical evidence suggests that machine is filling properly.
A11: c | B11: Based on the sample evidence, we reject H0 and accept Ha. The statistical evidence suggests that machine is NOT filling properly and we should shut down the machine and make adjustments so that it is filling correctly..

Sheet (4)
A1: Point of view: | B1: Manager trying to reduce costs by implementing a new manufacturing method | J1: < points <<<===== one-tail to Left
A2: Considering: | B2: New manufacturing method that will attempt to reduce costs | J2: < points <<<===== one-tail to Left
A3: Goal: | B3: Reduce costs | J3: < points <<<===== one-tail to Left
A4: Mew Cost = | B4: 220 | C4: costs per hour
A6: a | B6: H0 : μ | C6: >= | D6: =$B$4 -> 220 | E6: =$C$4 -> costs per hour
B7: Ha : μ | C7: < | D7: =$B$4 -> 220 | E7: =$C$4 -> costs per hour
A9: b | B9: Based on the sample evidence, we fail to reject H0. The statistical evidence suggests that the new method will not save on costs.
A10: c | B10: Based on the sample evidence, we reject H0 and accept Ha. The statistical evidence suggests that the new method WILL save on costs. The New Method should be considered.

Sheet alpha
C4: Actual Population Condition
C5: H0 TRUE (Ha FALSE) | D5: H0 FALSE (Ha TRUE)
A6: Conclusion (based on Sample) | B6: Reject H0 , Accept Ha | C6: Type I Error Alpha | D6: Correct Conclusion
B7: Fail To Reject H0 | C7: Correct Conclusion | D7: Type II Error Beta
A10: Other Wording:
C11: Actual Population Condition
C12: H0 TRUE (Ha FALSE) | D12: H0 FALSE (Ha TRUE)
A13: Conclusion (based on Sample) | B13: Reject H0 ,Accept Ha | C13: Type I Error Alpha (Level of Significance) "False Positive" | D13: Correct Conclusion "True Positive"
B14: Fail To Reject H0 | C14: Correct Conclusion "True Negative" | D14: Type II Error Beta "False Negative"
A16: False Positive: Our Alternative (Ha) was selected even though the Null (H0) was true.
A18: False Negative: Our Alternative (Ha) was not selected even though the Null (H0) was false.

Sheet (5)
A1: Assumed Mew: | B1: ="Young men in USA watch "&B2&" of prime-time TV each day." -> Young men in USA watch 56.2 of prime-time TV each day.
A2: Assumed Mew: | B2: 56.2 | C2: minutes
A3: Alternative: | B3: Researcher believes that German young men watch more | H3: 1-tail to Right >>>>>>>
B4: prime-time TV each day.
A5: Sample of daily prime-time TV watch time for German young men is taken
B7: H0 : μ | C7: <= | D7: =$B$2 -> 56.2 | E7: =$C$2 -> minutes
B8: Ha : μ | C8: > | D8: =$B$2 -> 56.2 | E8: =$C$2 -> minutes
A10: a | B10: Type 1 Error means that H0 is rejected when it is true ("Innocent, but found guilty"). | J10: False Positive: Our Alternative was accepted even though the Null was true
B11: Type 1 Error in this case means that we would get a sample Xbar in the upper alpha
B12: region that was a real sample Xbar that had many large values and thus was a true
B13: sampling error, even though the German young man prime-time TV watching time
B14: was 56.2 minutes.
B15: Type 1 Error means that the hypothesis test concluded that the mean German young
B16: man prime-time TV watching time was greater than 56.2 minutes, when in fact it was
B17: not greater than 56.2 minutes
A18: b | B18: Type 2 Error means that we fail to reject H0 when H0 is false (and Ha was true). | J18: False Negative: Our Alternative was not accepted, even though Null was false.
B19: Type 2 error means that we got an Xbar below the upper alpha area and that our
B20: sample randomly pulled too many small values.
B21: Type 2 Error in this case means that we say that the mew is not bigger than 56.2
B22: minutes when it actually is bigger than 56.2 minutes.

Sheet (6)
A1: Mew = | B1: 1 | C1: gram | D1: of fat per 3-quart container
A2: Assume that since they did not say they were the
A3: manufacturer, that your point of view is the consumer and
A4: what you care about if there were more than 1 gram of fat. | G4: >>>>>>>>> 1-tail to right
A6: a | B6: H0 : μ | C6: <= | D6: =$B$1 -> 1 | E6: =$C$1&" "&$D$1 -> gram of fat per 3-quart container | H6: >>>>>>>>> 1-tail to right
B7: Ha : μ | C7: > | D7: =$B$1 -> 1 | E7: =$C$1&" "&$D$1 -> gram of fat per 3-quart container
A9: b | B9: Type 1 Error means that we rejected H0 when it was true. We said there
B10: was more than 1 gram of fat per 3-quart container, when there was not
B11: more than 1 gram of fat per 3-quart container. Consequences: We say
B12: label is not correct, when it really is.
A15: c | B15: Type 2 Error means that we failed to reject the label's claim, even though
B16: there more than 1 gram of fat per 3-quart container. Consequences: We
B17: miss the fact that the label is not correct.

Sheet (7)
A1: Mew = | B1: 8000 | C1: sales | D1: per week
A2: Research hopes to show that new compensation plan increases the average sales per person.
A6: a | B6: H0 : μ | C6: <= | D6: =$B$1 -> 8000 | E6: =$C$1&" "&$D$1 -> sales per week | H6: >>>>>>>>> 1-tail to right
B7: Ha : μ | C7: > | D7: =$B$1 -> 8000 | E7: =$C$1&" "&$D$1 -> sales per week
A9: b | B9: Type 1 Error is when you reject H0 when it is true. In this case, we would
B10: accept that the "new compensation plan increases the average sales per
B11: person", when it does not. The consequences are that we would be using
B12: a new plan that did not increase ave. sales.
A15: c | B15: Type 2 error is when we Fail to reject H0, when it is false. Or said a
B16: different way, we do not accept the alternative hypothesis, when it is
B17: true. In this case, we would not accept the new compensation plan when
B18: in fact it would help increase ave. sales.

Sheet (8)
A1: Point of view: | B1: Manager trying to reduce costs by implementing a new production method | J1: < points <<<===== one-tail to Left
A2: Considering: | B2: New production method that will attempt to reduce costs | J2: < points <<<===== one-tail to Left
A3: Goal: | B3: Reduce costs | J3: < points <<<===== one-tail to Left
A4: Mew Cost = | B4: 220 | C4: costs per hour
A6: a | B6: H0 : μ | C6: >= | D6: =$B$4 -> 220 | E6: =$C$4 -> costs per hour
B7: Ha : μ | C7: < | D7: =$B$4 -> 220 | E7: =$C$4 -> costs per hour
A9: b | B9: Type 1 Error means that we reject H0 when it is true. We would accept
B10: Mew < $220, when it was not. In this case we would employ a new
B11: production method that would not reduce costs. The consequences would
B12: be that we spent money to employ a new method that did not reduce costs
A14: c | B14: Type 2 Error means that we do not accept Ha even though H0 was false.
B15: We would fail to reject H0 and not accept the lower cost method
B16: hypothesis of Mew < $220. The consequences would be that we would not
B17: employ a new method that could reduce costs.

Sheet (15)
A1: Mew = population mean = μ | N1: One Tail To Left
A2: Sigma = population standard deviation = s | N2: One Tail To Right
A3: Standard Error = Standard Deviation for the Sampling distribution of Xbar = SE | N3: Two Tail
A4: Hypothesized Value of Population Mean = μ0 = Assumed Value of Population Mean used for testing procedure
A5: sample size = n
A6: Sample Mean = Xbar
A7: Sample Standard Deviation (for when sigma not known) = s
A8: Alpha = a = Risk of rejecting H0 when it is actually true = Type 1 Error
A9: Test Statistic = Used to determine whether to reject H0 and accept Ha = Number of SE above or below hypothesized mean
A10: Use z test statistic if Sigma known or can be estimated, or you are significance Testing a Proportion al all 4 binomial tests have been met
A11: Use t test statistic if Sigma NOT known or can be estimated
A13: Hypothesis Test (Significance Test)
A14: Point of view: | B14: Researcher believes people wait till last minute because they get a smaller refund. Try to show refund amount less for last minute tax filers
A15: Considering: | B15: Population of last minute filers (April 10 - 15)
A16: Goal: | B16: Researcher believes people who file in last 5 days receive lower refunds | I16: <<<< ==== One Tail to left
A18: Step 1: List H0 and Ha | B18: H0 : μ | C18: >= | D18: =$B$24 -> 1056
B19: Ha : μ | C19: < | D19: =$B$24 -> 1056
A21: Step 2: Select Alpha | B21: Alpha = | C21: =B30 -> 0.05
A23: Step 3: Draw Picture, Collect Data, Calculate Sample Statistics, Calculate Test Statistic
A24: Hypothesized Mean = μ0 = | B24: 1056 | C24: average $ tax refund for filers before March 31
A25: Sigma = s = | B25: 1600
A26: Sample SD = s | B26: NA
A27: Test Statistic To Use: | B27: z | D27: =IF(B27="","",IF(B27="z","Because Sigma Known",IF(B27="t","Because Sigma NOT Known","Please Enter a z or t"))) -> Because Sigma Known
A28: sample size = n | B28: 400 | C28: refund amount for people who file between April 10 and 15.
A29: Sample Mean = Xbar | B29: 910
A30: Alpha = a = | B30: 0.05
A31: Type of Test | B31: One Tail To Left
A32: SE | B32: =B25/SQRT(B28) -> 80 | D32: =IF(B27="","",IF(B27="z"," =Sigma/SQRT(n)",IF(B27="t"," =s/SQRT(n)",IF(OR(B27<>"z",B27<>"t"),".")))) -> =Sigma/SQRT(n)
A33: ="Test Statistic = "&IF(B27="z","z",IF(B27="t","t",""))&" =" -> Test Statistic = z = | B33: =($B$29-$B$24)/$B$32 -> -1.825 | D33: =(Xbar - μ0)/SE | F33: Sample Error in numerator, Standard Deviations in Denominator = "How Many SD above or below Hypothesized Pop Mean
A35: Step 4: Create p-value Rejection Rule and calculate p-value
A36: Rejection Rule: | B36: p-value <= alpha, Reject H0 and accept Ha , otherwise Fail to Reject H0
A37: p-value One Tail To Left | B37: =_xlfn.NORM.S.DIST(B33,1) -> 0.03400051467 | F37: =NORM.S.DIST(TestStatistic,1)
A39: Step 4: Calculate Critical Value and Critical Value Rejection Rule
A40: Rejection Rule: | B40: Test Statistic <= Critical Value, Reject H0 and accept Ha , otherwise Fail to Reject H0
A41: Critical Value One Tail To Left | B41: =_xlfn.NORM.S.INV(B30) -> -1.644853627 | F41: =NORM.S.INV(alpha)
A44: Step 5: Write Conclusion
A45: ="Because the p-value of "&ROUND(B37,4)&" is less than our alpha "&B30&" we reject the H0 and accept Ha." -> Because the p-value of 0.034 is less than our alpha 0.05 we reject the H0 and accept Ha.
A46: ="Because the Test Statistic of "&ROUND(B33,3)&" is less than or equal to our Critical Value of "&ROUND(B41,3)&" we reject the H0 and accept Ha." -> Because the Test Statistic of -1.825 is less than or equal to our Critical Value of -1.645 we reject the H0 and accept Ha.
A47: ="The sample evidence suggests that the average refund amount for 'last minute' filers is less than "&DOLLAR(B24,0)&"." -> The sample evidence suggests that the average refund amount for 'last minute' filers is less than $1,056.
A48: ="At an alpha risk of "&B30&", our sample mean of "&DOLLAR(B29,0)&" provided statistically significant evidence to suggest" -> At an alpha risk of 0.05, our sample mean of $910 provided statistically significant evidence to suggest
A49: ="that the average refund amount for 'last minute' filers is less than "&DOLLAR(B24,0)&"." -> that the average refund amount for 'last minute' filers is less than $1,056.
A50: ="We do run risk of the type 1 Error where we might dispense information that says that the sample" -> We do run risk of the type 1 Error where we might dispense information that says that the sample | H50: False Positive, we took alternative even when null was true.
A51: ="mean is less than "&DOLLAR(B24,0)&" when it is not." -> mean is less than $1,056 when it is not.
A52: ="We do run risk of the type 2 Error where we might say it is not less than "&DOLLAR(B24,0)&", even though it is." -> We do run risk of the type 2 Error where we might say it is not less than $1,056, even though it is. | H52: False Negative, we rejected the alternative even though null was false.

Sheet (16)
A1: Mew = population mean = μ | N1: One Tail To Left
A2: Sigma = population standard deviation = s | N2: One Tail To Right
A3: Standard Error = Standard Deviation for the Sampling distribution of Xbar = SE | N3: Two Tail
A4: Hypothesized Value of Population Mean = μ0 = Assumed Value of Population Mean used for testing procedure
A5: sample size = n
A6: Sample Mean = Xbar
A7: Sample Standard Deviation (for when sigma not known) = s
A8: Alpha = a = Risk of rejecting H0 when it is actually true = Type 1 Error
A9: Test Statistic = Used to determine whether to reject H0 and accept Ha = Number of SE above or below hypothesized mean
A10: Use z test statistic if Sigma known or can be estimated, or you are significance Testing a Proportion al all 4 binomial tests have been met
A11: Use t test statistic if Sigma NOT known or can be estimated
A13: Hypothesis Test (Significance Test)
A14: Point of view: | B14: Researcher
A15: Considering: | B15: Have credit Card Balances for undergraduates continued to increase
A16: Goal: | B16: Have credit Card Balances for undergraduates continued to increase | H16: ===>>>>> One Tail To Right
A18: Step 1: List H0 and Ha | B18: H0 : μ | C18: <= | D18: =$B$24 -> 3173
B19: Ha : μ | C19: > | D19: =$B$24 -> 3173
A21: Step 2: Select Alpha | B21: Alpha = | C21: 0.05
A23: Step 3: Draw Picture, Collect Data, Calculate Sample Statistics, Calculate Test Statistic
A24: Hypothesized Mean = μ0 = | B24: 3173 | C24: Credit Card Balance for Undergraduate Students
A25: Sigma = s = | B25: 1000
A26: Sample SD = s | B26: NA
A27: Test Statistic To Use: | B27: z | D27: =IF(B27="","",IF(B27="z","Because Sigma Known",IF(B27="t","Because Sigma NOT Known","Please Enter a z or t"))) -> Because Sigma Known
A28: sample size = n | B28: 180
A29: Sample Mean = Xbar | B29: 3325
A30: Alpha = a = | B30: =C21 -> 0.05
A31: Type of Test | B31: One Tail To Right
A32: SE | B32: =B25/SQRT(B28) -> 74.53559925 | D32: =IF(B27="","",IF(B27="z"," =Sigma/SQRT(n)",IF(B27="t"," =s/SQRT(n)",IF(OR(B27<>"z",B27<>"t"),".")))) -> =Sigma/SQRT(n)
A33: ="Test Statistic = "&IF(B27="z","z",IF(B27="t","t",""))&" =" -> Test Statistic = z = | B33: =(B29-B24)/B32 -> 2.039293995 | D33: =(Xbar - μ0)/SE | F33: Sample Error in numerator, Standard Deviations in Denominator = "How Many SD above or below Hypothesized Pop Mean
A35: Step 4: Create p-value Rejection Rule and calculate p-value
A36: Rejection Rule: | B36: p-value <= alpha, Reject H0 and accept Ha , otherwise Fail to Reject H0
A37: p-value One Tail To Right | B37: =1-_xlfn.NORM.S.DIST(B33,1) -> 0.02071034728 | F37: =1-NORM.S.DIST(TestStatistic,1)
A39: Step 4: Calculate Critical Value and Critical Value Rejection Rule
A40: Rejection Rule: | B40: Test Statistic >= Critical Value, Reject H0 and accept Ha , otherwise Fail to Reject H0
A41: Critical Value One Tail To Right | B41: =_xlfn.NORM.S.INV(1-B30) -> 1.644853627 | F41: =NORM.S.INV(1-alpha)
A44: Step 5: Write Conclusion
A45: ="Because the p-value of "&ROUND(B37,4)&" is less than our alpha "&B30&" we reject the H0 and accept Ha." -> Because the p-value of 0.0207 is less than our alpha 0.05 we reject the H0 and accept Ha.
A46: ="Because the Test Statistic of "&ROUND(B33,3)&" is greater than or equal to our Critical Value of "&ROUND(B41,3)&" we reject the H0 and accept Ha." -> Because the Test Statistic of 2.039 is greater than or equal to our Critical Value of 1.645 we reject the H0 and accept Ha.
A47: ="The sample evidence suggests that since April 2009, the mean Credit Card Balance for Undergraduate Students has increased above "&DOLLAR(B24,0)&"." -> The sample evidence suggests that since April 2009, the mean Credit Card Balance for Undergraduate Students has increased above $3,173.
A48: ="At an alpha risk of "&B30&", our sample mean of "&DOLLAR(B29,0)&" provided statistically significant evidence to suggest" -> At an alpha risk of 0.05, our sample mean of $3,325 provided statistically significant evidence to suggest
A49: ="that the mean Credit Card Balance for Undergraduate Students is more than "&DOLLAR(B24,0)&"." -> that the mean Credit Card Balance for Undergraduate Students is more than $3,173.
A50: We did have the Type 1 Error risk of saying that the balance has increased, when in fact it has not. | J50: False Positive: Select Ha, when H0 was true. H0 was innocent, but we said it was guilty.

Sheet (17)
A1: Mew = population mean = μ | N1: One Tail To Left
A2: Sigma = population standard deviation = s | N2: One Tail To Right
A3: Standard Error = Standard Deviation for the Sampling distribution of Xbar = SE | N3: Two Tail
A4: Hypothesized Value of Population Mean = μ0 = Assumed Value of Population Mean used for testing procedure
A5: sample size = n
A6: Sample Mean = Xbar
A7: Sample Standard Deviation (for when sigma not known) = s
A8: Alpha = a = Risk of rejecting H0 when it is actually true = Type 1 Error
A9: Test Statistic = Used to determine whether to reject H0 and accept Ha = Number of SE above or below hypothesized mean
A10: Use z test statistic if Sigma known or can be estimated, or you are significance Testing a Proportion al all 4 binomial tests have been met
A11: Use t test statistic if Sigma NOT known or can be estimated
A13: Hypothesis Test (Significance Test)
A14: Point of view: | B14: Jones & Ryan Securities Firm
A15: Considering: | B15: See whether the mean year end bonus is different from the reported mean of $125,001
A16: Goal: | B16: See whether the mean year end bonus is different from the reported mean of $125,000
A18: Step 1: List H0 and Ha | B18: H0 : μ | C18: = | D18: =$B$24 -> 125500
B19: Ha : μ | C19: <> | D19: =$B$24 -> 125500 | F19: Not Equal to is <>
A21: Step 2: Select Alpha | B21: Alpha = | C21: 0.05
A23: Step 3: Draw Picture, Collect Data, Calculate Sample Statistics, Calculate Test Statistic
A24: Hypothesized Mean = μ0 = | B24: 125500 | C24: Wall Street Year End Bonuses Paid Out for 2005
A25: Sigma = s = | B25: 30000
A26: Sample SD = s | B26: NA
A27: Test Statistic To Use: | B27: z | D27: =IF(B27="","",IF(B27="z","Because Sigma Known",IF(B27="t","Because Sigma NOT Known","Please Enter a z or t"))) -> Because Sigma Known
A28: sample size = n | B28: 40
A29: Sample Mean = Xbar | B29: 118000
A30: Alpha = a = | B30: =C21 -> 0.05
A31: Type of Test | B31: Two Tail
A32: SE | B32: =B25/SQRT(B28) -> 4743.41649 | D32: =IF(B27="","",IF(B27="z"," =Sigma/SQRT(n)",IF(B27="t"," =s/SQRT(n)",IF(OR(B27<>"z",B27<>"t"),".")))) -> =Sigma/SQRT(n)
A33: ="Test Statistic = "&IF(B27="z","z",IF(B27="t","t",""))&" =" -> Test Statistic = z = | B33: =(B29-B24)/B32 -> -1.58113883 | D33: =(Xbar - μ0)/SE | F33: Sample Error in numerator, Standard Deviations in Denominator = "How Many SD above or below Hypothesized Pop Mean
A35: Step 4: Create p-value Rejection Rule and calculate p-value
A36: Rejection Rule: | B36: p-value*2 <= alpha, Reject H0 and accept Ha , otherwise Fail to Reject H0
A37: p-value Two Tail | B37: =_xlfn.NORM.S.DIST(B33,1)*2 -> 0.113846298 | D37: =NORM.S.DIST(Lower Z,1)*2
A39: Step 4: Calculate Critical Value and Critical Value Rejection Rule
A40: Rejection Rule: | B40: Lower Critical Value <= Test Statistic <= Upper Critical Value, Fail to Reject H0 , otherwise Reject H0 and accept Ha .
A41: Lower Critical Value | B41: =_xlfn.NORM.S.INV(B30) -> -1.644853627 | D41: =NORM.S.INV(alpha)
A42: Upper Critical Value | B42: =-B41 -> 1.644853627 | D42: =-"Lower Critical Value" | G42: Curve is symmetric
A44: Step 5: Write Conclusion
A45: ="Because the p-value of "&ROUND(B37,4)&" is greater than our alpha "&B30&" we Fail To Reject H0." -> Because the p-value of 0.1138 is greater than our alpha 0.05 we Fail To Reject H0.
A46: ="Because the Test Statistic of "&ROUND(B33,3)&" is between "&ROUND(B41,3)&" and "&ROUND(B42,3)&", we Fail To Reject H0." -> Because the Test Statistic of -1.581 is between -1.645 and 1.645, we Fail To Reject H0.
A47: ="The sample evidence suggests that the mean year end bonus is not significantly different from the Wall Street Year Mean Bonus reported in 2006." -> The sample evidence suggests that the mean year end bonus is not significantly different from the Wall Street Year Mean Bonus reported in 2006.
A48: ="At an alpha risk of "&B30&", our sample mean of "&DOLLAR(B29,0)&" Does NOT provided statistically significant evidence to suggest" -> At an alpha risk of 0.05, our sample mean of $118,000 Does NOT provided statistically significant evidence to suggest
A49: ="that the mean year end bonus is different from "&DOLLAR(B24,0)&"." -> that the mean year end bonus is different from $125,500.
A50: We did have the Type 2 Error risk of saying that the year end bonus was not different from the year end bonus of Wall Street, when in fact it was. | J50: False Negative, we rejected the alternative even though null was false.

Sheet (28)
A1: Mew = population mean = μ | N1: One Tail To Left
A2: Sigma = population standard deviation = s | N2: One Tail To Right
A3: Standard Error = Standard Deviation for the Sampling distribution of Xbar = SE | N3: Two Tail
A4: Hypothesized Value of Population Mean = μ0 = Assumed Value of Population Mean used for testing procedure
A5: sample size = n
A6: Sample Mean = Xbar
A7: Sample Standard Deviation (for when sigma not known) = s
A8: Alpha = a = Risk of rejecting H0 when it is actually true = Type 1 Error
A9: Test Statistic = Used to determine whether to reject H0 and accept Ha = Number of SE above or below hypothesized mean
A10: Use z test statistic if Sigma known or can be estimated, or you are significance Testing a Proportion al all 4 binomial tests have been met
A11: Use t test statistic if Sigma NOT known or can be estimated
A13: Hypothesis Test (Significance Test)
A14: Point of view: | B14: People who challenge the shareholder group
A15: Considering: | B15: Whether claim that the mean tenure for CEO >= 9 Years is reasonable (if pop mean is really less than) | I15: <<<< ==== One Tail to left
A16: Goal: | B16: Run test to see if test statistic ends up significantly on low end
A18: Step 1: List H0 and Ha | B18: H0 : μ | C18: >= | D18: =$B$24 -> 9 | E18: =$C$24 -> years (Mean CEO tenure)
B19: Ha : μ | C19: < | D19: =$B$24 -> 9 | E19: =$C$24 -> years (Mean CEO tenure)
A21: Step 2: Select Alpha | B21: Alpha = | C21: 0.01
A23: Step 3: Draw Picture, Collect Data, Calculate Sample Statistics, Calculate Test Statistic
A24: Hypothesized Mean = μ0 = | B24: 9 | C24: years (Mean CEO tenure)
A25: Sigma = s = | B25: NA
A26: Sample SD = s | B26: 6.38 | C26: years (Mean CEO tenure) | F26: From WSJ Survey
A27: Test Statistic To Use: | B27: t | D27: =IF(B27="","",IF(B27="z","Because Sigma Known",IF(B27="t","Because Sigma NOT Known","Please Enter a z or t"))) -> Because Sigma NOT Known
A28: sample size = n | B28: 85
A29: df | B29: =B28-1 -> 84
A30: Sample Mean = Xbar | B30: 7.27 | C30: years (Mean CEO tenure) | F30: From WSJ Survey
A31: Alpha = a = | B31: =C21 -> 0.01
A32: Type of Test | B32: One Tail To Left
A33: SE | B33: =B26/SQRT(B28) -> 0.6920081604 | D33: =IF(B27="","",IF(B27="z"," =Sigma/SQRT(n)",IF(B27="t"," =s/SQRT(n)",IF(OR(B27<>"z",B27<>"t"),".")))) -> =s/SQRT(n)
A34: ="Test Statistic = "&IF(B27="z","z",IF(B27="t","t",""))&" =" -> Test Statistic = t = | B34: =(B30-B24)/B33 -> -2.499970519 | D34: =(Xbar - μ0)/SE | F34: Sample Error in numerator, Standard Deviations in Denominator = "How Many SD above or below Hypothesized Pop Mean
A36: Step 4: Create p-value Rejection Rule and calculate p-value
A37: Rejection Rule: | B37: p-value <= alpha, Reject H0 and accept Ha , otherwise Fail to Reject H0
A38: p-value One Tail To Left | B38: =_xlfn.T.DIST(B34,B29,1) -> 0.007182545042 | D38: =T.DIST(t,df,1)
A40: Step 4: Calculate Critical Value and Critical Value Rejection Rule
A41: Rejection Rule: | B41: Test Statistic <= Critical Value, Reject H0 and accept Ha , otherwise Fail to Reject H0
A42: Critical Value One Tail To Left | B42: =_xlfn.T.INV(B31,B29) -> -2.371563686 | D42: =T.INV(alpha,df)
A45: Step 5: Write Conclusion
A46: ="Because the p-value of "&ROUND(B38,4)&" is less than our alpha "&B31&" we reject the H0 and accept Ha." -> Because the p-value of 0.0072 is less than our alpha 0.01 we reject the H0 and accept Ha.
A47: ="Because the Test Statistic of "&ROUND(B34,3)&" is less than or equal to our Critical Value of "&ROUND(B42,3)&" we reject the H0 and accept Ha." -> Because the Test Statistic of -2.5 is less than or equal to our Critical Value of -2.372 we reject the H0 and accept Ha.
A48: ="The sample evidence suggests that the mean tenure for CEOs is less that "&B24&" years." -> The sample evidence suggests that the mean tenure for CEOs is less that 9 years.
A49: ="At an alpha risk of "&B31&", our sample mean of "&B30&" provided statistically significant evidence to suggest" -> At an alpha risk of 0.01, our sample mean of 7.27 provided statistically significant evidence to suggest
A50: ="that the mean years worked by a CEO is less than "&B24&" years." -> that the mean years worked by a CEO is less than 9 years.
A51: ="We do run risk of the type 1 Error where we might dispense information that says that the sample" -> We do run risk of the type 1 Error where we might dispense information that says that the sample | H51: False Positive, we took alternative even when null was true.
A52: ="mean is less than "&B24&" years, when it is not." -> mean is less than 9 years, when it is not.
A53: ="We do run risk of the type 2 Error where we might say it is not less than "&DOLLAR(B24,0)&", even though it is." -> We do run risk of the type 2 Error where we might say it is not less than $9, even though it is. | H53: False Negative, we rejected the alternative even though null was false.

Sheet (32)
A1: Sale Price | C1: Mew = population mean = μ | P1: One Tail To Left
A2: 12400 | C2: Sigma = population standard deviation = s | P2: One Tail To Right
A3: 10400 | C3: Standard Error = Standard Deviation for the Sampling distribution of Xbar = SE | P3: Two Tail
A4: 12100 | C4: Hypothesized Value of Population Mean = μ0 = Assumed Value of Population Mean used for testing procedure
A5: 10000 | C5: sample size = n
A6: 11000 | C6: Sample Mean = Xbar
A7: 8895 | C7: Sample Standard Deviation (for when sigma not known) = s
A8: 7675 | C8: Alpha = a = Risk of rejecting H0 when it is actually true = Type 1 Error
A9: 9975 | C9: Test Statistic = Used to determine whether to reject H0 and accept Ha = Number of SE above or below hypothesized mean
A10: 6350 | C10: Use z test statistic if Sigma known or can be estimated, or you are significance Testing a Proportion al all 4 binomial tests have been met
A11: 10470 | C11: Use t test statistic if Sigma NOT known or can be estimated
A12: 9895
A13: 11250 | C13: Hypothesis Test (Significance Test)
A14: 8795 | C14: Point of view: | D14: Kansas City Used Car Dealership
A15: 12500 | C15: Considering: | D15: Whether their mean price is different from national mean | J15: Two-Tail Test
A16: 9340 | C16: Goal: | D16: Determine whether the pop mean price for used cars at Kansas City Used Car Dealership is different from national mean
A17: 10150
A18: 9200 | C18: Step 1: List H0 and Ha | D18: H0 : μ | E18: = | F18: =D$24 -> 10192 | G18: =E$24 -> National Mean Price for used car
A19: 9395 | D19: Ha : μ | E19: <> | F19: =D$24 -> 10192 | G19: =E$24 -> National Mean Price for used car | J19: Not Equal to is <>
A20: 11000
A21: 10640 | C21: Step 2: Select Alpha | D21: Alpha = | E21: 0.05
A22: 10000
A23: 7500 | C23: Step 3: Draw Picture, Collect Data, Calculate Sample Statistics, Calculate Test Statistic
A24: 8000 | C24: Hypothesized Mean = μ0 = | D24: 10192 | E24: National Mean Price for used car | I24: From National Auto Dealers Association
A25: 10440 | C25: Sigma = s = | D25: NA
A26: 10200 | C26: Sample SD = s | D26: =_xlfn.STDEV.S(A2:A51) -> 1399.998907
A27: 10300 | C27: Test Statistic To Use: | D27: t | F27: =IF(D27="","",IF(D27="z","Because Sigma Known",IF(D27="t","Because Sigma NOT Known","Please Enter a z or t"))) -> Because Sigma NOT Known
A28: 9740 | C28: sample size = n | D28: =COUNT(A2:A51) -> 50
A29: 9280 | C29: df | D29: =D28-1 -> 49
A30: 10930 | C30: Sample Mean = Xbar | D30: =AVERAGE(A2:A51) -> 9750
A31: 8000 | C31: Alpha = a = | D31: =E21 -> 0.05
A32: 9000 | C32: Type of Test | D32: Two Tail
A33: 7680 | C33: SE | D33: =D26/SQRT(D28) -> 197.9897441 | F33: =IF(D27="","",IF(D27="z"," =Sigma/SQRT(n)",IF(D27="t"," =s/SQRT(n)",IF(OR(D27<>"z",D27<>"t"),".")))) -> =s/SQRT(n)
A34: 9400 | C34: ="Test Statistic = "&IF(D27="z","z",IF(D27="t","t",""))&" =" -> Test Statistic = t = | D34: =(D30-D24)/D33 -> -2.232438867 | F34: =(Xbar - μ0)/SE | H34: Sample Error in numerator, Standard Deviations in Denominator = "How Many SD above or below Hypothesized Pop Mean
A35: 10730
A36: 7350 | C36: Step 4: Create p-value Rejection Rule and calculate p-value
A37: 12240 | C37: Rejection Rule: | D37: p-value*2 <= alpha, Reject H0 and accept Ha , otherwise Fail to Reject H0
A38: 11970 | C38: p-value Two Tail | D38: =_xlfn.T.DIST.2T(-D34,D29) -> 0.03018869065 | F38: =T.DIST.2T(upper t,df)
A39: 8240 | D39: =_xlfn.T.DIST(D34,D29,1)*2 -> 0.03018869065 | F39: =T.DIST(lower t,df,1)*2
A40: 9910 | C40: Step 4: Calculate Critical Value and Critical Value Rejection Rule
A41: 10080 | C41: Rejection Rule: | D41: If Test Statistic is between the two critical values, Fail To Reject Ho, otherwise Reject H0 and Accept Ha.
A42: 9440 | C42: Lower Critical Value | D42: =_xlfn.T.INV(D31/2,D29) -> -2.009575237 | F42: =T.INV(alpha/2,df) | H42: or | I42: =-I43 -> -2.009575237 | J42: =-T.INV.2T(alpha,df)
A43: 8970 | C43: Upper Critical Value | D43: =_xlfn.T.INV(1-D31/2,D29) -> 2.009575237 | F43: =T.INV(1-alpha/2,df) | H43: or | I43: =_xlfn.T.INV.2T(D31,D29) -> 2.009575237 | J43: =T.INV.2T(alpha,df)
A44: 9500
A45: 10050 | C45: Step 5: Write Conclusion
A46: 10130 | C46: ="Because the p-value of "&ROUND(D39,4)&" is less than or equal to our alpha "&D31&" we Reject H0, and Accept Ha." -> Because the p-value of 0.0302 is less than or equal to our alpha 0.05 we Reject H0, and Accept Ha.
A47: 11400 | C47: ="Because the Test Statistic of "&ROUND(D34,3)&" is outside the range "&ROUND(D42,3)&" and "&ROUND(D43,3)&", weReject H0, and Accept Ha." -> Because the Test Statistic of -2.232 is outside the range -2.01 and 2.01, weReject H0, and Accept Ha.
A48: 8500 | C48: ="The sample evidence suggests that the mean used car auto price at the Kansas City Used Car Dealer is significantly different from the national average." -> The sample evidence suggests that the mean used car auto price at the Kansas City Used Car Dealer is significantly different from the national average.
A49: 7500 | C49: ="At an alpha risk of "&D31&", our sample mean of "&DOLLAR(D30,0)&" provides statistically significant evidence to suggest" -> At an alpha risk of 0.05, our sample mean of $9,750 provides statistically significant evidence to suggest
A50: 9090 | C50: ="that the mean used car auto price at the Kansas City Used Car Dealer is significantly different from the national average, "&DOLLAR(D24,0)&"." -> that the mean used car auto price at the Kansas City Used Car Dealer is significantly different from the national average, $10,192.
A51: 10500 | C51: We run the risk of a Type 1 error is saying that the mean auto price at the Kansas City Dealer is different from the national average, when it is not. | L51: False Positive, We risk accepting Ha, when Ho was true

Sheet (33)
A1: Mew = population mean = μ | N1: One Tail To Left
A2: Sigma = population standard deviation = s | N2: One Tail To Right
A3: Standard Error = Standard Deviation for the Sampling distribution of Xbar = SE | N3: Two Tail
A4: Hypothesized Value of Population Mean = μ0 = Assumed Value of Population Mean used for testing procedure
A5: sample size = n
A6: Sample Mean = Xbar
A7: Sample Standard Deviation (for when sigma not known) = s
A8: Alpha = a = Risk of rejecting H0 when it is actually true = Type 1 Error
A9: Test Statistic = Used to determine whether to reject H0 and accept Ha = Number of SE above or below hypothesized mean
A10: Use z test statistic if Sigma known or can be estimated, or you are significance Testing a Proportion al all 4 binomial tests have been met
A11: Use t test statistic if Sigma NOT known or can be estimated
A13: Hypothesis Test (Significance Test)
A14: Point of view: | B14: Midwesterner who believes the town of Webster City drinks more milk than the National Average.
A15: Considering: | B15: Whether sample evidence suggest that the mean milk consumed in Webster City is more than National average.
A16: Goal: | B16: Run test to support opinion that the mean milk consumed in Webster City is more than National average. | H16: Two Tail
A18: Step 1: List H0 and Ha | B18: H0 : μ | C18: <= | D18: =B$24 -> 21.6 | E18: gallons of milk consumed annually.
B19: Ha : μ | C19: > | D19: 21.6 | E19: gallons of milk consumed annually.
A21: Step 2: Select Alpha | B21: Alpha = | C21: 0.05
A23: Step 3: Draw Picture, Collect Data, Calculate Sample Statistics, Calculate Test Statistic
A24: Hypothesized Mean = μ0 = | B24: 21.6 | C24: gallons of milk consumed annually.
A25: Sigma = s = | B25: NA
A26: Sample SD = s | B26: 4.87 | C26: =C24 -> gallons of milk consumed annually.
A27: Test Statistic To Use: | B27: t | D27: =IF(B27="","",IF(B27="z","Because Sigma Known",IF(B27="t","Because Sigma NOT Known","Please Enter a z or t"))) -> Because Sigma NOT Known
A28: sample size = n | B28: 16
A29: df | B29: =B28-1 -> 15 | D29: b
A30: Sample Mean = Xbar | B30: 24.1 | D30: ="Point estimate of difference is"&" "&B30&"-"&B24&" = "&B30-B24&" gal." -> Point estimate of difference is 24.1-21.6 = 2.5 gal.
A31: Alpha = a = | B31: =C21 -> 0.05
A32: Type of Test | B32: One Tail To Right
A33: SE | B33: =B26/SQRT(B28) -> 1.2175 | D33: =IF(B27="","",IF(B27="z"," =Sigma/SQRT(n)",IF(B27="t"," =s/SQRT(n)",IF(OR(B27<>"z",B27<>"t"),".")))) -> =s/SQRT(n)
A34: ="Test Statistic = "&IF(B27="z","z",IF(B27="t","t",""))&" =" -> Test Statistic = t = | B34: =(B30-B24)/B33 -> 2.05338809 | D34: =(Xbar - μ0)/SE | F34: Sample Error in numerator, Standard Deviations in Denominator = "How Many SD above or below Hypothesized Pop Mean
A36: Step 4: Create p-value Rejection Rule and calculate p-value
A37: Rejection Rule: | B37: p-value <= alpha, Reject H0 and accept Ha , otherwise Fail to Reject H0
A38: p-value One Tail To Right | B38: =1-_xlfn.T.DIST(B34,B29,1) -> 0.02895014065 | D38: =1-T.DIST(t,df,1) | F38: =_xlfn.T.DIST.RT(B34,B29) -> 0.02895014065 | G38: =T.DIST.RT(B34,B29)
A40: Step 4: Calculate Critical Value and Critical Value Rejection Rule
A41: Rejection Rule: | B41: Test Statistic >= Critical Value, Reject H0 and accept Ha , otherwise Fail to Reject H0
A42: Critical Value One Tail To Right | B42: =_xlfn.T.INV(1-B31,B29) -> 1.753050356
A45: Step 5: Write Conclusion
A46: ="Because the p-value of "&ROUND(B38,4)&" is less than our alpha "&B31&" we reject the H0 and accept Ha." -> Because the p-value of 0.029 is less than our alpha 0.05 we reject the H0 and accept Ha.
A47: ="Because the Test Statistic of "&ROUND(B34,3)&" is greater than or equal to our Critical Value of "&ROUND(B42,3)&" we reject the H0 and accept Ha." -> Because the Test Statistic of 2.053 is greater than or equal to our Critical Value of 1.753 we reject the H0 and accept Ha.
A48: ="The sample evidence suggests that the mean number of gallons of milk consumed each year in Webster City is significantly more than the national average of, "&B24&"." -> The sample evidence suggests that the mean number of gallons of milk consumed each year in Webster City is significantly more than the national average of, 21.6.
A49: ="At an alpha risk of "&B31&", our sample mean of "&B30&" provided statistically significant evidence to suggest" -> At an alpha risk of 0.05, our sample mean of 24.1 provided statistically significant evidence to suggest
A50: =" that the mean number of gallons of milk consumed each year in Webster City is significantly more than the national average of, "&B24&" gallons." -> that the mean number of gallons of milk consumed each year in Webster City is significantly more than the national average of, 21.6 gallons.
A51: We did have the Type 1 Error risk of saying that the mean number of gallons consumed in Webster City was more than the national average, when it was not. | J51: False Positive: Select Ha, when H0 was true. H0 was innocent, but we said it was guilty.

Sheet (43)
A1: Used Coupon? | C1: Binomial?
A2: No | C2: Fixed Number of Trials? | D2: Yes
A3: No | C3: Prob stays same each time | D3: Yes | E3: Yes or No
A4: No | C4: Trials are independent | D4: Yes | E4: (randomly selected and not all grouped together by similar traits)
A5: Yes | C5: Each Trial result in success or not success | D5: Yes | E5: Yes or No
A6: No | C6: Assume True: n*p >= 5 | D6: =D15*D10 -> 10 | E6: =IF(D6>=5,"Yes","No") -> Yes
A7: No | C7: Assume True: n*(1-p) >= 5 | D7: =D15*(1-D10) -> 90 | E7: Yes
A8: Yes | C8: Success = | D8: Yes | E8: Used Coupon
A9: No | C9: Not Success | D9: No | E9: Not Used Coupon
A10: No | C10: Hypothesized Pop Proportion = p0 = | D10: 0.1 | E10: use coupon
A11: No | C11: Point of view: | D11: Eagle Outfitters tests its Credit Card Customers to see if coupon gets more than 10% use.
A12: No | C12: Goal: | D12: Test to see if there is significantly more than 10% use of Coupon from store's Credit Card
A13: No | D13: Users, before going national with coupon
A14: No | C14: Test: | D14: >>>>>>> 1 tail to right
A15: No | C15: n = credit card customers | D15: =COUNTA(A2:A101) -> 100 | F15: =ShowFormula -> =COUNTA(A2:A101) | G15: Relative Frequency from Chapter 2
A16: No | C16: ="Count for "&D8 -> Count for Yes | D16: =COUNTIF($A$2:$A$101,D8) -> 13 | F16: =ShowFormula -> =COUNTIF($A$2:$A$101,D8) | G16: Relative Frequency from Chapter 2
A17: No | C17: ="Count for "&D9 -> Count for No | D17: =COUNTIF($A$2:$A$101,D9) -> 87 | F17: =ShowFormula -> =COUNTIF($A$2:$A$101,D9)
A18: No | C18: ="Prob("&D8&")" -> Prob(Yes) | D18: =D16/$D$15 -> 0.13 | F18: =ShowFormula -> =D16/$D$15
A19: No | C19: ="Prob("&D9&")" -> Prob(No) | D19: =D17/$D$15 -> 0.87 | F19: =ShowFormula -> =D17/$D$15
A20: No
A21: No | C21: Step 1:
A22: No | C22: H0 : p | D22: <= | E22: =$D$10 -> 0.1
A23: No | C23: Ha : p | D23: > | E23: 0.1
A24: No
A25: No | C25: Step 2: | D25: alpha | E25: 0.05
A26: Yes
A27: No | C27: Step 3: Draw Picture, Collect Data, Calculate Sample Statistics, Calculate Test Statistic
A28: No | C28: =C18&" = Pbar =" -> Prob(Yes) = Pbar = | D28: =D18 -> 0.13
A29: Yes | C29: SE | D29: =SQRT(D10*(1-D10)/D15) -> 0.03 | F29: =SQRT(p0*(1-p0)/n)
A30: No | C30: Test Statistic = z | D30: =(D28-D10)/D29 -> 1 | F30: =(Pbar - p0)/SE
A31: No
A32: No | C32: Step 4: Create p-value Rejection Rule and calculate p-value
A33: No | C33: Rejection Rule: | D33: p-value <= alpha, Reject H0 and accept Ha , otherwise Fail to Reject H0
A34: No | C34: p-value One Tail To Right | D34: =1-_xlfn.NORM.S.DIST(D30,1) -> 0.1586552539 | F34: =1-NORM.S.DIST(z,1)
A35: No
A36: No | C36: Step 4: Calculate Critical Value and Critical Value Rejection Rule
A37: No | C37: Rejection Rule: | D37: Test Statistic >= Critical Value, Reject H0 and accept Ha , otherwise Fail to Reject H0
A38: Yes | C38: Critical Value One Tail To Right | D38: =_xlfn.NORM.S.INV(1-E25) -> 1.644853627 | F38: =1-NORM.S.DIST(alpha,1)
A39: No
A40: No | C40: Step 5: Write Conclusion
A41: No | C41: Because the p-value of 0.1587 is bigger than an our alpha of 0.05, we fail to reject H0.
A42: No | C42: Because our test statistic, 1, is less than our critical value, 1.645, we fail to reject H0.
A43: No | C43: At an alpha of 0.05, our sample proportion of 0.13 does not provide statistically significant evidence to support the idea that the coupon would be
A44: No | C44: used at a rate of more than 0.10.
A45: No | C45: We do run a risk of a Type 2 error where we say that the coupon will not be used at a rate more than 0.10, when in fact it would. (False Negative
A46: No | C46: (reject Ha when H0 was false))
A47: No | C47: Maybe managers would want to try a larger sample, given that pbar was 0.13.
A48: No
A49: No
A50: No
A51: Yes
A52: Yes
A53: No
A54: Yes
A55: No
A56: No
A57: No
A58: No
A59: No
A60: No
A61: No
A62: No
A63: No
A64: No
A65: No
A66: No
A67: No
A68: No
A69: No
A70: Yes
A71: No
A72: No
A73: No
A74: No
A75: Yes
A76: No
A77: No
A78: No
A79: No
A80: No
A81: No
A82: No
A83: No
A84: No
A85: No
A86: No
A87: No
A88: No
A89: No
A90: No
A91: No
A92: Yes
A93: No
A94: Yes
A95: Yes
A96: No
A97: No
A98: No
A99: No
A100: No
A101: No

Sheet (44)
A1: Drive While Drowsy? | C1: Binomial?
A2: No | C2: Fixed Number of Trials? | D2: Yes
A3: Yes | C3: Prob stays same each time | D3: Yes | E3: Yes or No
A4: No | C4: Trials are independent | D4: Yes | E4: (randomly selected and not all grouped together by similar triats)
A5: No | C5: Each Trial result in success or not success | D5: Yes | E5: Yes or No
A6: Yes | C6: Assume True: n*p >= 5 | D6: =D15*D10 -> 204 | E6: =IF(D6>=5,"Yes","No") -> Yes
A7: Yes | C7: Assume True: n*(1-p) >= 5 | D7: =D15*(1-D10) -> 196 | E7: Yes
A8: Yes | C8: Success = | D8: Yes | E8: Drive Drowsy
A9: Yes | C9: Not Success | D9: No | E9: Don't Drive Drowsy
A10: No | C10: Hypothesized Pop Proportion = p0 = | D10: 0.51
A11: Yes | C11: Point of view: | D11: Researcher wants to show that proportion is higher for night workers
A12: Yes | C12: Goal: | D12: Run test to show if the proportion of drowsy drivers is higher for night drivers
A13: No | D13: than for drivers overall
A14: No | C14: Test: | D14: >>>>>>> 1 tail to right
A15: Yes | C15: n = credit card customers | D15: =COUNTA($A$2:$A$401) -> 400 | F15: =ShowFormula -> =COUNTA($A$2:$A$401) | I15: Relative Frequency from Chapetr 2
A16: Yes | C16: ="Count for "&D8 -> Count for Yes | D16: =COUNTIF($A$2:$A$401,D8) -> 232 | F16: =ShowFormula -> =COUNTIF($A$2:$A$401,D8) | I16: Relative Frequency from Chapetr 2
A17: No | C17: ="Count for "&D9 -> Count for No | D17: =COUNTIF($A$2:$A$401,D9) -> 168 | F17: =ShowFormula -> =COUNTIF($A$2:$A$401,D9)
A18: Yes | C18: ="Prob("&D8&")" -> Prob(Yes) | D18: =D16/$D$15 -> 0.58 | F18: =ShowFormula -> =D16/$D$15
A19: No | C19: ="Prob("&D9&")" -> Prob(No) | D19: =D17/$D$15 -> 0.42 | F19: =ShowFormula -> =D17/$D$15
A20: No
A21: Yes | C21: Step 1:
A22: Yes | C22: H0 : p | D22: <= | E22: =$D$10 -> 0.51
A23: No | C23: Ha : p | D23: > | E23: 0.51
A24: Yes
A25: Yes | C25: Step 2: | D25: alpha | E25: 0.01
A26: No
A27: Yes | C27: Step 3: Draw Picture, Collect Data, Calculate Sample Statistics, Calculate Test Statistic
A28: Yes | C28: =C18&" = Pbar =" -> Prob(Yes) = Pbar = | D28: =D18 -> 0.58
A29: Yes | C29: SE | D29: =SQRT(D10*(1-D10)/D15) -> 0.0249949995 | F29: =SQRT(p0*(1-p0)/n)
A30: Yes | C30: Test Statistic = z | D30: =(D28-D10)/D29 -> 2.800560168 | F30: =(Pbar - p0)/SE
A31: No
A32: No | C32: Step 4: Create p-value Rejection Rule and calculate p-value
A33: Yes | C33: Rejection Rule: | D33: p-value <= alpha, Reject H0 and accept Ha , otherwise Fail to Reject H0
A34: Yes | C34: p-value One Tail To Right | D34: =1-_xlfn.NORM.S.DIST(D30,1) -> 0.002550699823 | F34: =1-NORM.S.DIST(z,1)
A35: No
A36: No | C36: Step 4: Calculate Critical Value and Critical Value Rejection Rule
A37: No | C37: Rejection Rule: | D37: Test Statistic >= Critical Value, Reject H0 and accept Ha , otherwise Fail to Reject H0
A38: Yes | C38: Critical Value One Tail To Right | D38: =_xlfn.NORM.S.INV(1-E25) -> 2.326347874 | F38: =1-NORM.S.DIST(alpha,1)
A39: Yes
A40: Yes | C40: Step 5: Write Conclusion
A41: No | C41: Because of p-value of .0026 is less than or equal to our alpha of 0.01, we reject H0 and accept Ha.
A42: No | C42: Because of test statistic of 2.8 is beyond the critical value of 2.33, we reject H0 and accept Ha.
A43: Yes | C43: The sample evidence strongly suggests that the proportion of night workers who say they drive while drowsy is higher than the
A44: No | C44: proportion of all drivers who tsay that they drive drowsy, 0.51.
A45: Yes | C45: We do run the Type 1 Error risk of saying that the proportion of night workers who say that they drive drowsy is higher than
A46: No | C46: the proportion of all drivers who say they drive drowsy, when that is not true.
A47: Yes
A48: Yes
A49: Yes
A50: No
A51: Yes
A52: Yes
A53: Yes
A54: Yes
A55: Yes
A56: No
A57: Yes
A58: Yes
A59: No
A60: Yes
A61: No
A62: Yes
A63: No
A64: No
A65: No
A66: No
A67: No
A68: Yes
A69: Yes
A70: No
A71: No
A72: Yes
A73: Yes
A74: Yes
A75: Yes
A76: Yes
A77: No
A78: No
A79: Yes
A80: No
A81: Yes
A82: No
A83: No
A84: Yes
A85: Yes
A86: Yes
A87: Yes
A88: No
A89: No
A90: No
A91: No
A92: No
A93: No
A94: Yes
A95: No
A96: No
A97: Yes
A98: Yes
A99: Yes
A100: No
A101: Yes
A102: Yes
A103: Yes
A104: Yes
A105: No
A106: No
A107: Yes
A108: No
A109: No
A110: Yes
A111: Yes
A112: No
A113: Yes
A114: Yes
A115: Yes
A116: Yes
A117: No
A118: No
A119: No
A120: Yes
A121: No
A122: Yes
A123: Yes
A124: No
A125: No
A126: Yes
A127: No
A128: No
A129: Yes
A130: Yes
A131: No
A132: No
A133: Yes
A134: No
A135: Yes
A136: No
A137: Yes
A138: No
A139: Yes
A140: No
A141: Yes
A142: Yes
A143: Yes
A144: Yes
A145: No
A146: No
A147: Yes
A148: Yes
A149: Yes
A150: No
A151: No
A152: No
A153: No
A154: No
A155: Yes
A156: Yes
A157: Yes
A158: Yes
A159: No
A160: Yes
A161: No
A162: No
A163: No
A164: No
A165: Yes
A166: No
A167: Yes
A168: Yes
A169: Yes
A170: Yes
A171: No
A172: Yes
A173: Yes
A174: Yes
A175: Yes
A176: Yes
A177: Yes
A178: Yes
A179: Yes
A180: Yes
A181: Yes
A182: Yes
A183: Yes
A184: No
A185: No
A186: Yes
A187: No
A188: Yes
A189: Yes
A190: No
A191: Yes
A192: No
A193: Yes
A194: No
A195: Yes
A196: Yes
A197: Yes
A198: No
A199: No
A200: Yes
... 201 more rows

Sheet Sheet2
A1: Drive While Drowsy?
A2: No
A3: Yes
A4: No
A5: No
A6: Yes
A7: Yes
A8: Yes
A9: Yes
A10: No
A11: Yes
A12: Yes
A13: No
A14: No
A15: Yes
A16: Yes
A17: No
A18: Yes
A19: No
A20: No
A21: Yes
A22: Yes
A23: No
A24: Yes
A25: Yes
A26: No
A27: Yes
A28: Yes
A29: Yes
A30: Yes
A31: No
A32: No
A33: Yes
A34: Yes
A35: No
A36: No
A37: No
A38: Yes
A39: Yes
A40: Yes
A41: No
A42: No
A43: Yes
A44: No
A45: Yes
A46: No
A47: Yes
A48: Yes
A49: Yes
A50: No
A51: Yes
A52: Yes
A53: Yes
A54: Yes
A55: Yes
A56: No
A57: Yes
A58: Yes
A59: No
A60: Yes
A61: No
A62: Yes
A63: No
A64: No
A65: No
A66: No
A67: No
A68: Yes
A69: Yes
A70: No
A71: No
A72: Yes
A73: Yes
A74: Yes
A75: Yes
A76: Yes
A77: No
A78: No
A79: Yes
A80: No
A81: Yes
A82: No
A83: No
A84: Yes
A85: Yes
A86: Yes
A87: Yes
A88: No
A89: No
A90: No
A91: No
A92: No
A93: No
A94: Yes
A95: No
A96: No
A97: Yes
A98: Yes
A99: Yes
A100: No
A101: Yes
A102: Yes
A103: Yes
A104: Yes
A105: No
A106: No
A107: Yes
A108: No
A109: No
A110: Yes
A111: Yes
A112: No
A113: Yes
A114: Yes
A115: Yes
A116: Yes
A117: No
A118: No
A119: No
A120: Yes
A121: No
A122: Yes
A123: Yes
A124: No
A125: No
A126: Yes
A127: No
A128: No
A129: Yes
A130: Yes
A131: No
A132: No
A133: Yes
A134: No
A135: Yes
A136: No
A137: Yes
A138: No
A139: Yes
A140: No
A141: Yes
A142: Yes
A143: Yes
A144: Yes
A145: No
A146: No
A147: Yes
A148: Yes
A149: Yes
A150: No
A151: No
A152: No
A153: No
A154: No
A155: Yes
A156: Yes
A157: Yes
A158: Yes
A159: No
A160: Yes
A161: No
A162: No
A163: No
A164: No
A165: Yes
A166: No
A167: Yes
A168: Yes
A169: Yes
A170: Yes
A171: No
A172: Yes
A173: Yes
A174: Yes
A175: Yes
A176: Yes
A177: Yes
A178: Yes
A179: Yes
A180: Yes
A181: Yes
A182: Yes
A183: Yes
A184: No
A185: No
A186: Yes
A187: No
A188: Yes
A189: Yes
A190: No
A191: Yes
A192: No
A193: Yes
A194: No
A195: Yes
A196: Yes
A197: Yes
A198: No
A199: No
A200: Yes
... 201 more rows
